[Event "MČR juniorů a juniorek v rapid šachu 2024"]
[Site "Hotel Fit Fun, Harrachov, Czech Republic"]
[Date "2024.09.22"]
[Round "9.22"]
[White "Dobsa Emma"]
[Black "Dorazilova Kristyna"]
[Result "1-0"]
[TimeControl "20+5"]
[WhiteFideId "23709391"]
[BlackFideId "23739142"]
[WhiteElo "1830"]
[BlackElo "1771"]

1. e4 {[%clk 00:20:09]} e5 {[%clk 00:20:09]} {[%emt 00:00:02]} 2. Nf3 {[%clk
00:20:13]} {[%emt 00:00:01]} d6 {[%clk 00:20:14]} 3. d4 {[%clk 00:20:10]}
{[%emt 00:00:08]} exd4 {[%clk 00:20:18]} 4. Nxd4 {[%clk 00:20:14]} {[%emt
00:00:01]} Nf6 {[%clk 00:20:21]} {[%emt 00:00:02]} 5. Nc3 {[%clk 00:20:18]}
{[%emt 00:00:02]} Be7 {[%clk 00:20:23]} {[%emt 00:00:02]} 6. Bf4 {[%clk
00:20:19]} {[%emt 00:00:04]} Nc6 {[%clk 00:20:09]} {[%emt 00:00:20]} 7. Bc4
{[%clk 00:19:42]} {[%emt 00:00:42]} a6 {[%clk 00:20:09]} {[%emt 00:00:04]} 8.
a4 {[%clk 00:19:21]} {[%emt 00:00:26]} O-O {[%clk 00:19:52]} {[%emt 00:00:21]}
9. Qd3 {[%clk 00:18:48]} {[%emt 00:00:39]} Ne5 {[%clk 00:19:30]} {[%emt
00:00:27]} 10. Bxe5 {[%clk 00:18:41]} {[%emt 00:00:12]} dxe5 {[%clk 00:19:35]}
11. Nf3 {[%clk 00:18:44]} {[%emt 00:00:02]} Qxd3 {[%clk 00:19:27]} {[%emt
00:00:13]} 12. Bxd3 {[%clk 00:18:48]} {[%emt 00:00:01]} Bd6 {[%clk 00:19:27]}
{[%emt 00:00:05]} 13. h3 {[%clk 00:18:46]} {[%emt 00:00:07]} Bd7 {[%clk
00:19:19]} {[%emt 00:00:13]} 14. g4 {[%clk 00:18:38]} {[%emt 00:00:12]} Bc6
{[%clk 00:18:56]} {[%emt 00:00:29]} 15. Ke2 {[%clk 00:17:55]} {[%emt 00:00:48]}
Rfe8 {[%clk 00:18:32]} {[%emt 00:00:28]} 16. Nh4 {[%clk 00:17:36]} {[%emt
00:00:24]} g6 {[%clk 00:18:16]} {[%emt 00:00:21]} 17. Nf3 {[%clk 00:17:10]}
{[%emt 00:00:30]} Rad8 {[%clk 00:18:00]} {[%emt 00:00:22]} 18. Rhg1 {[%clk
00:16:48]} {[%emt 00:00:27]} Bb4 {[%clk 00:17:53]} {[%emt 00:00:13]} 19. Nd2
{[%clk 00:16:47]} {[%emt 00:00:05]} Kg7 {[%clk 00:17:03]} {[%emt 00:00:55]} 20.
h4 {[%clk 00:16:46]} {[%emt 00:00:06]} Bd7 {[%clk 00:16:35]} {[%emt 00:00:33]}
21. f3 {[%clk 00:16:43]} {[%emt 00:00:08]} h5 {[%clk 00:15:42]} {[%emt
00:00:58]} 22. g5 {[%clk 00:16:41]} {[%emt 00:00:07]} Nh7 {[%clk 00:15:34]}
{[%emt 00:00:13]} 23. Nd5 {[%clk 00:16:41]} {[%emt 00:00:05]} Bd6 {[%clk
00:15:29]} {[%emt 00:00:11]} 24. Nc4 {[%clk 00:15:52]} {[%emt 00:00:53]} Bc6
{[%clk 00:15:31]} {[%emt 00:00:03]} 25. Nxd6 {[%clk 00:15:45]} {[%emt
00:00:12]} cxd6 {[%clk 00:15:31]} {[%emt 00:00:05]} 26. Bc4 {[%clk 00:15:34]}
{[%emt 00:00:17]} Bxd5 {[%clk 00:15:02]} {[%emt 00:00:33]} 27. Bxd5 {[%clk
00:15:37]} {[%emt 00:00:02]} a5 {[%clk 00:13:56]} {[%emt 00:01:12]} 28. Rgd1
{[%clk 00:15:16]} {[%emt 00:00:25]} b6 {[%clk 00:13:54]} {[%emt 00:00:07]} 29.
Rd2 {[%clk 00:15:04]} {[%emt 00:00:17]} Nf8 {[%clk 00:13:54]} {[%emt 00:00:06]}
30. Rad1 {[%clk 00:14:55]} {[%emt 00:00:14]} Ne6 {[%clk 00:13:23]} {[%emt
00:00:36]} 31. Ke3 {[%clk 00:14:20]} {[%emt 00:00:38]} Nf4 {[%clk 00:12:50]}
{[%emt 00:00:39]} 32. Ba2 {[%clk 00:13:58]} {[%emt 00:00:27]} Re7 {[%clk
00:10:41]} {[%emt 00:02:15]} 33. Rxd6 {[%clk 00:13:28]} {[%emt 00:00:34]} Rb8
{[%clk 00:09:48]} {[%emt 00:00:58]} 34. Rd7 {[%clk 00:13:11]} {[%emt 00:00:22]}
Rb7 {[%clk 00:09:28]} {[%emt 00:00:25]} 35. R7d6 {[%clk 00:12:15]} {[%emt
00:01:01]} Rb8 {[%clk 00:08:10]} {[%emt 00:01:23]} 36. Rd8 {[%clk 00:11:44]}
{[%emt 00:00:36]} Rbb7 {[%clk 00:07:46]} {[%emt 00:00:29]} 37. R1d6 {[%clk
00:11:26]} {[%emt 00:00:22]} b5 {[%clk 00:06:32]} {[%emt 00:01:20]} 38. Ra8
{[%clk 00:08:51]} {[%emt 00:02:41]} bxa4 {[%clk 00:06:05]} {[%emt 00:00:32]} 39.
Rdd8 {[%clk 00:08:54]} {[%emt 00:00:01]} Nd5+ {[%clk 00:02:23]} {[%emt
00:03:47]} 40. Bxd5 {[%clk 00:08:46]} {[%emt 00:00:13]} 1-0



[ePGN "0.1;DGT LiveChess/2.2.6"]

[Event "MČR juniorů a juniorek v rapid šachu 2024"]
[Site "Hotel Fit Fun, Harrachov, Czech Republic"]
[Date "2024.09.22"]
[Round "9.23"]
[White "Koranda Kosma"]
[Black "Stara Zuzana"]
[Result "1-0"]
[TimeControl "20+5"]
[WhiteFideId "23772948"]
[BlackFideId "23733543"]
[WhiteElo "1884"]
[BlackElo "1796"]

1. e4 {[%clk 00:20:08]} {[%emt 00:38:16]} e5 {[%clk 00:20:09]} {[%emt
00:00:03]} 2. Nf3 {[%clk 00:20:12]} {[%emt 00:00:01]} Nc6 {[%clk 00:20:13]} 3.
Bb5 {[%clk 00:20:16]} {[%emt 00:00:01]} a6 {[%clk 00:20:16]} {[%emt 00:00:02]}
4. Ba4 {[%clk 00:20:20]} Nf6 {[%clk 00:20:16]} {[%emt 00:00:04]} 5. d3 {[%clk
00:20:24]} {[%emt 00:00:02]} b5 {[%clk 00:20:12]} {[%emt 00:00:09]} 6. Bb3
{[%clk 00:20:28]} {[%emt 00:00:01]} Bc5 {[%clk 00:19:34]} {[%emt 00:00:43]} 7.
c3 {[%clk 00:20:30]} {[%emt 00:00:03]} O-O {[%clk 00:19:02]} {[%emt 00:00:37]}
8. Bg5 {[%clk 00:20:33]} {[%emt 00:00:02]} d6 {[%clk 00:18:36]} {[%emt
00:00:31]} 9. Nbd2 {[%clk 00:20:36]} {[%emt 00:00:02]} h6 {[%clk 00:18:27]}
{[%emt 00:00:13]} 10. Bh4 {[%clk 00:20:40]} {[%emt 00:00:01]} Be6 {[%clk
00:17:48]} {[%emt 00:00:45]} 11. Bc2 {[%clk 00:20:36]} {[%emt 00:00:08]} b4
{[%clk 00:17:17]} {[%emt 00:00:35]} 12. Nf1 {[%clk 00:20:28]} {[%emt 00:00:13]}
Rb8 {[%clk 00:15:04]} {[%emt 00:02:18]} 13. d4 {[%clk 00:19:53]} {[%emt
00:00:41]} bxc3 {[%clk 00:13:59]} {[%emt 00:01:09]} 14. bxc3 {[%clk 00:19:48]}
{[%emt 00:00:10]} exd4 {[%clk 00:13:48]} {[%emt 00:00:16]} 15. cxd4 {[%clk
00:19:50]} {[%emt 00:00:04]} Bb4+ {[%clk 00:13:46]} {[%emt 00:00:07]} 16. N1d2
{[%clk 00:19:15]} {[%emt 00:00:40]} Bc4 {[%clk 00:12:41]} {[%emt 00:01:09]} 17.
Ba4 {[%clk 00:16:20]} {[%emt 00:03:01]} Na5 {[%clk 00:10:35]} {[%emt 00:02:10]}
18. a3 {[%clk 00:15:04]} {[%emt 00:01:21]} Bxd2+ {[%clk 00:08:54]} {[%emt
00:01:46]} 19. Nxd2 {[%clk 00:14:46]} {[%emt 00:00:24]} g5 {[%clk 00:07:31]}
{[%emt 00:01:28]} 20. Nxc4 {[%clk 00:11:09]} {[%emt 00:03:42]} Nxc4 {[%clk
00:07:24]} {[%emt 00:00:12]} 21. Bg3 {[%clk 00:09:51]} {[%emt 00:01:23]} Nxe4
{[%clk 00:06:44]} {[%emt 00:00:45]} 22. O-O {[%clk 00:09:43]} {[%emt 00:00:12]}
Nxg3 {[%clk 00:06:28]} {[%emt 00:00:21]} 23. hxg3 {[%clk 00:09:34]} {[%emt
00:00:15]} Nb2 {[%clk 00:06:14]} {[%emt 00:00:18]} 24. Qc2 {[%clk 00:09:37]}
{[%emt 00:00:02]} Nxa4 {[%clk 00:06:08]} {[%emt 00:00:11]} 25. Qxa4 {[%clk
00:09:41]} Qf6 {[%clk 00:05:54]} {[%emt 00:00:19]} 26. Rac1 {[%clk 00:08:44]}
{[%emt 00:01:03]} Rfc8 {[%clk 00:05:25]} {[%emt 00:00:34]} 27. d5 {[%clk
00:08:11]} {[%emt 00:00:38]} Qf5 {[%clk 00:05:02]} {[%emt 00:00:27]} 28. Rfd1
{[%clk 00:07:34]} {[%emt 00:00:43]} Rb2 {[%clk 00:04:39]} {[%emt 00:00:27]} 29.
Qd4 {[%clk 00:06:10]} {[%emt 00:01:29]} Ra2 {[%clk 00:04:06]} {[%emt 00:00:36]}
30. a4 {[%clk 00:06:12]} {[%emt 00:00:06]} Re2 {[%clk 00:02:20]} {[%emt
00:01:50]} 31. Rc6 {[%clk 00:05:22]} {[%emt 00:00:54]} Re4 {[%clk 00:01:59]}
{[%emt 00:00:26]} 32. Qd3 {[%clk 00:02:22]} {[%emt 00:03:03]} Re1+ {[%clk
00:01:42]} {[%emt 00:00:24]} 33. Kh2 {[%clk 00:02:26]} {[%emt 00:00:02]} Qxd3
{[%clk 00:01:38]} {[%emt 00:00:09]} 34. Rxd3 {[%clk 00:02:29]} {[%emt
00:00:02]} Ra1 {[%clk 00:01:29]} {[%emt 00:00:13]} 35. Rxa6 {[%clk 00:02:29]}
{[%emt 00:00:05]} Ra2 {[%clk 00:01:26]} {[%emt 00:00:08]} 36. Rf3 {[%clk
00:01:18]} {[%emt 00:01:16]} Re8 {[%clk 00:00:56]} {[%emt 00:00:36]} 37. Ra7
{[%clk 00:00:22]} {[%emt 00:01:01]} Re7 {[%clk 00:00:25]} {[%emt 00:00:36]} 38.
a5 {[%clk 00:00:19]} {[%emt 00:00:08]} Rd2 {[%clk 00:00:22]} {[%emt 00:00:08]}
39. Rf5 {[%clk 00:00:14]} {[%emt 00:00:09]} Kg7 {[%clk 00:00:13]} {[%emt
00:00:15]} 40. a6 {[%clk 00:00:08]} {[%emt 00:00:11]} Kg6 {[%clk 00:00:14]}
{[%emt 00:00:04]} 41. g4 {[%clk 00:00:10]} {[%emt 00:00:03]} Re4 {[%clk
00:00:10]} {[%emt 00:00:09]} 42. f3 {[%clk 00:00:08]} {[%emt 00:00:06]} Ree2
{[%clk 00:00:14]} {[%emt 00:00:01]} 43. Rxc7 {[%clk 00:00:06]} {[%emt
00:00:07]} Rxg2+ {[%clk 00:00:16]} {[%emt 00:00:02]} 44. Kh1 {[%clk 00:00:10]}
Rge2 {[%clk 00:00:16]} {[%emt 00:00:05]} 45. Rc1 {[%clk 00:00:12]} {[%emt
00:00:04]} Rh2+ {[%clk 00:00:17]} {[%emt 00:00:05]} 46. Kg1 {[%clk 00:00:16]}
Rhg2+ {[%clk 00:00:21]} {[%emt 00:00:01]} 47. Kh1 {[%clk 00:00:20]} Rc2 {[%clk
00:00:10]} {[%emt 00:00:16]} 48. Rxc2 {[%clk 00:00:21]} {[%emt 00:00:03]} Rxc2
{[%clk 00:00:14]} 49. f4 {[%clk 00:00:18]} {[%emt 00:00:08]} Ra2 {[%clk
00:00:17]} {[%emt 00:00:03]} 50. fxg5 {[%clk 00:00:22]} {[%emt 00:00:01]} hxg5
{[%clk 00:00:19]} {[%emt 00:00:03]} 51. Rf1 {[%clk 00:00:20]} {[%emt 00:00:06]}
Rxa6 {[%clk 00:00:22]} {[%emt 00:00:03]} 52. Kg2 {[%clk 00:00:21]} {[%emt
00:00:04]} Ra5 {[%clk 00:00:21]} {[%emt 00:00:06]} 53. Rf5 {[%clk 00:00:14]}
{[%emt 00:00:11]} Ra4 {[%clk 00:00:25]} {[%emt 00:00:02]} 54. Kg3 {[%clk
00:00:17]} {[%emt 00:00:02]} Ra3+ {[%clk 00:00:29]} 55. Kg2 {[%clk 00:00:22]}
Re3 {[%clk 00:00:30]} {[%emt 00:00:02]} 56. Kf2 {[%clk 00:00:24]} {[%emt
00:00:03]} Re5 {[%clk 00:00:22]} {[%emt 00:00:13]} 57. Rxe5 {[%clk 00:00:25]}
{[%emt 00:00:05]} dxe5 {[%clk 00:00:25]} {[%emt 00:00:02]} 58. Ke3 {[%clk
00:00:25]} {[%emt 00:00:04]} Kf6 {[%emt 00:00:03]} 59. Ke4 {[%emt 00:00:04]}
Ke7 {[%clk 00:00:10]} {[%emt 00:00:13]} 60. Kxe5 {[%clk 00:00:29]} {[%emt
00:00:02]} f6+ {[%clk 00:00:08]} {[%emt 00:00:07]} 61. Kf5 {[%clk 00:00:31]}
{[%emt 00:00:03]} Kd6 {[%emt 00:00:08]} 62. Ke4 {[%emt 00:00:06]} 1-0



[ePGN "0.1;DGT LiveChess/2.2.6"]

[Event "MČR juniorů a juniorek v rapid šachu 2024"]
[Site "Hotel Fit Fun, Harrachov, Czech Republic"]
[Date "2024.09.22"]
[Round "9.24"]
[White "Nespora Tatana"]
[Black "Housa Jan"]
[Result "0-1"]
[TimeControl "20+5"]
[WhiteFideId "392286"]
[BlackFideId "23736356"]
[WhiteElo "1697"]
[BlackElo "1788"]

1. e4 {[%clk 00:20:08]} {[%emt 00:00:02]} c6 {[%clk 00:20:09]} {[%emt
00:00:01]} 2. d4 {[%clk 00:20:09]} {[%emt 00:00:03]} d5 {[%clk 00:20:13]}
{[%emt 00:00:02]} 3. f3 {[%clk 00:20:11]} {[%emt 00:00:04]} dxe4 {[%clk
00:20:16]} {[%emt 00:00:01]} 4. Bc4 {[%clk 00:20:12]} {[%emt 00:00:04]} b5
{[%clk 00:20:05]} {[%emt 00:00:17]} 5. Bb3 {[%clk 00:20:12]} {[%emt 00:00:04]}
Nf6 {[%clk 00:19:54]} {[%emt 00:00:15]} 6. Nc3 {[%clk 00:19:44]} {[%emt
00:00:35]} exf3 {[%clk 00:19:42]} {[%emt 00:00:16]} 7. Nxf3 {[%clk 00:19:47]}
{[%emt 00:00:02]} Bf5 {[%clk 00:19:10]} {[%emt 00:00:37]} 8. O-O {[%clk
00:19:36]} {[%emt 00:00:16]} e6 {[%clk 00:19:07]} {[%emt 00:00:09]} 9. Nh4
{[%clk 00:19:08]} {[%emt 00:00:32]} Bg6 {[%clk 00:17:40]} {[%emt 00:01:32]} 10.
Bg5 {[%clk 00:17:53]} {[%emt 00:01:20]} Be7 {[%clk 00:17:31]} {[%emt 00:00:14]}
11. Nxg6 {[%emt 00:00:26]} hxg6 {[%clk 00:17:33]} {[%emt 00:00:01]} 12. Qf3
{[%clk 00:17:26]} {[%emt 00:00:13]} Qxd4+ {[%clk 00:16:29]} {[%emt 00:01:09]}
13. Be3 {[%clk 00:16:28]} {[%emt 00:01:03]} Qg4 {[%clk 00:14:57]} {[%emt
00:01:37]} 14. Qf2 {[%clk 00:15:30]} {[%emt 00:01:03]} Nbd7 {[%clk 00:13:37]}
{[%emt 00:01:25]} 15. Rad1 {[%clk 00:15:03]} {[%emt 00:00:32]} Qh4 {[%clk
00:11:07]} {[%emt 00:02:35]} 16. g3 {[%clk 00:14:33]} {[%emt 00:00:35]} Qh3
{[%clk 00:11:09]} {[%emt 00:00:02]} 17. Rd2 {[%clk 00:12:31]} {[%emt 00:02:08]}
Ne5 {[%clk 00:09:52]} {[%emt 00:01:21]} 18. Bd4 {[%clk 00:09:54]} {[%emt
00:02:43]} Neg4 {[%clk 00:08:55]} {[%emt 00:01:02]} 19. Qf3 {[%clk 00:09:33]}
{[%emt 00:00:26]} Rc8 {[%clk 00:08:51]} {[%emt 00:00:09]} 20. Ne4 {[%clk
00:07:59]} {[%emt 00:01:39]} Nxh2 {[%clk 00:06:12]} {[%emt 00:02:44]} 21. Qf2
{[%clk 00:07:58]} {[%emt 00:00:05]} Qxf1+ {[%clk 00:05:42]} {[%emt 00:00:36]}
22. Qxf1 {[%clk 00:07:32]} {[%emt 00:00:31]} Nxf1 {[%clk 00:05:44]} {[%emt
00:00:03]} 23. Nxf6+ {[%clk 00:07:35]} {[%emt 00:00:02]} Bxf6 {[%clk 00:05:37]}
{[%emt 00:00:12]} 24. Kxf1 {[%clk 00:07:35]} {[%emt 00:00:05]} Rd8 {[%clk
00:05:19]} {[%emt 00:00:22]} 25. c3 {[%clk 00:07:38]} {[%emt 00:00:03]} Bxd4
{[%clk 00:05:12]} {[%emt 00:00:12]} 26. Rxd4 {[%clk 00:07:41]} {[%emt
00:00:02]} Rxd4 {[%clk 00:05:12]} {[%emt 00:00:06]} 27. cxd4 {[%clk 00:07:45]}
{[%emt 00:00:01]} Rh2 {[%clk 00:05:15]} {[%emt 00:00:01]} 0-1



[ePGN "0.1;DGT LiveChess/2.2.6"]

[Event "MČR juniorů a juniorek v rapid šachu 2024"]
[Site "Hotel Fit Fun, Harrachov, Czech Republic"]
[Date "2024.09.22"]
[Round "9.25"]
[White "Hrazdira Matyas Josef"]
[Black "Marxova Sarka"]
[Result "0-1"]
[TimeControl "20+5"]
[WhiteFideId "23732954"]
[BlackFideId "23701862"]
[WhiteElo "1786"]
[BlackElo "1684"]

1. e4 {[%clk 00:20:07]} {[%emt 00:00:03]} c5 {[%clk 00:20:04]} {[%emt
00:00:08]} 2. Nf3 {[%clk 00:20:10]} {[%emt 00:00:01]} d6 {[%clk 00:20:07]}
{[%emt 00:00:02]} 3. d4 {[%clk 00:20:14]} {[%emt 00:00:01]} cxd4 {[%clk
00:20:10]} {[%emt 00:00:02]} 4. Nxd4 {[%clk 00:20:17]} {[%emt 00:00:02]} Nf6
{[%clk 00:20:13]} {[%emt 00:00:02]} 5. Nc3 {[%clk 00:20:20]} {[%emt 00:00:02]}
a6 {[%clk 00:20:16]} {[%emt 00:00:02]} 6. f3 {[%clk 00:20:22]} {[%emt
00:00:03]} g6 {[%clk 00:20:06]} {[%emt 00:00:14]} 7. Be3 {[%clk 00:20:24]}
{[%emt 00:00:04]} Bg7 {[%clk 00:20:08]} {[%emt 00:00:03]} 8. Qd2 {[%clk
00:19:59]} {[%emt 00:00:30]} b5 {[%clk 00:19:53]} {[%emt 00:00:20]} 9. a3
{[%clk 00:20:00]} {[%emt 00:00:05]} Bb7 {[%clk 00:19:51]} {[%emt 00:00:06]} 10.
g4 {[%clk 00:19:00]} {[%emt 00:01:05]} Nbd7 {[%clk 00:19:20]} {[%emt 00:00:36]}
11. g5 {[%clk 00:18:13]} {[%emt 00:00:52]} Nh5 {[%clk 00:19:22]} {[%emt
00:00:03]} 12. Be2 {[%clk 00:18:09]} {[%emt 00:00:09]} Rc8 {[%clk 00:18:59]}
{[%emt 00:00:27]} 13. f4 {[%clk 00:16:46]} {[%emt 00:01:28]} Nc5 {[%clk
00:17:49]} {[%emt 00:01:16]} 14. Bxh5 {[%clk 00:11:37]} {[%emt 00:05:14]} gxh5
{[%clk 00:17:16]} {[%emt 00:00:38]} 15. Qg2 {[%clk 00:11:26]} {[%emt 00:00:15]}
e6 {[%clk 00:12:36]} {[%emt 00:04:45]} 16. O-O {[%clk 00:10:10]} {[%emt
00:01:21]} f5 {[%clk 00:11:40]} {[%emt 00:01:01]} 17. Rae1 {[%clk 00:09:02]}
{[%emt 00:01:13]} Qe7 {[%clk 00:09:33]} {[%emt 00:02:12]} 18. Qh3 {[%clk
00:08:53]} {[%emt 00:00:14]} Nxe4 {[%clk 00:07:46]} {[%emt 00:01:52]} 19. Nxe4
{[%clk 00:06:36]} {[%emt 00:02:22]} Bxe4 {[%clk 00:07:45]} {[%emt 00:00:07]} 20.
Qxh5+ {[%clk 00:06:38]} {[%emt 00:00:02]} Kd8 {[%clk 00:07:01]} {[%emt
00:00:48]} 21. c3 {[%clk 00:06:08]} {[%emt 00:00:36]} Kc7 {[%clk 00:06:08]}
{[%emt 00:00:58]} 22. Ra1 {[%clk 00:04:43]} {[%emt 00:01:30]} Qe8 {[%clk
00:05:01]} {[%emt 00:01:11]} 23. Qe2 {[%clk 00:04:27]} {[%emt 00:00:22]} Bd5
{[%clk 00:04:55]} {[%emt 00:00:11]} 24. Qc2 {[%clk 00:03:49]} {[%emt 00:00:42]}
h6 {[%clk 00:04:24]} {[%emt 00:00:37]} 25. a4 {[%clk 00:03:26]} {[%emt
00:00:28]} Qh5 {[%clk 00:03:38]} {[%emt 00:00:50]} 26. Rf2 {[%clk 00:01:18]}
{[%emt 00:02:14]} Qg4+ {[%clk 00:03:22]} {[%emt 00:00:21]} 27. Kf1 {[%clk
00:01:13]} {[%emt 00:00:10]} Qh3+ {[%clk 00:02:10]} {[%emt 00:01:17]} 28. Ke2
{[%clk 00:01:15]} {[%emt 00:00:03]} Bc4+ {[%clk 00:02:03]} {[%emt 00:00:11]} 29.
Kd2 {[%clk 00:01:14]} {[%emt 00:00:08]} hxg5 {[%clk 00:01:26]} {[%emt
00:00:42]} 30. axb5 {[%clk 00:00:21]} {[%emt 00:00:58]} gxf4 {[%clk 00:00:30]}
{[%emt 00:01:00]} 0-1



[ePGN "0.1;DGT LiveChess/2.2.6"]

[Event "MČR juniorů a juniorek v rapid šachu 2024"]
[Site "Hotel Fit Fun, Harrachov, Czech Republic"]
[Date "2024.09.22"]
[Round "9.26"]
[White "Fousek Petr"]
[Black "Kopecka Libuse"]
[Result "1-0"]
[TimeControl "20+5"]
[WhiteFideId "23736003"]
[BlackFideId "23748826"]
[WhiteElo "1731"]
[BlackElo "1496"]

1. e4 {[%clk 00:20:06]} {[%emt 00:00:03]} c5 {[%clk 00:20:09]} {[%emt
00:00:02]} 2. Nc3 {[%clk 00:20:09]} {[%emt 00:00:02]} Nc6 {[%clk 00:20:10]}
{[%emt 00:00:04]} 3. f4 {[%emt 00:00:07]} d6 {[%clk 00:19:36]} {[%emt
00:00:34]} 4. a4 {[%clk 00:20:14]} {[%emt 00:00:03]} g6 {[%clk 00:19:18]}
{[%emt 00:00:23]} 5. Bc4 {[%clk 00:20:17]} {[%emt 00:00:02]} Bg7 {[%clk
00:18:36]} {[%emt 00:00:47]} 6. Nf3 {[%clk 00:20:19]} {[%emt 00:00:02]} Bg4
{[%clk 00:18:00]} {[%emt 00:00:41]} 7. Bxf7+ {[%clk 00:20:09]} {[%emt
00:00:15]} Kxf7 {[%clk 00:16:50]} {[%emt 00:01:16]} 8. Ng5+ {[%clk 00:20:12]}
{[%emt 00:00:01]} Ke8 {[%clk 00:16:54]} 9. Qxg4 {[%clk 00:20:15]} {[%emt
00:00:03]} Nh6 {[%clk 00:14:29]} {[%emt 00:02:29]} 10. Qh3 {[%clk 00:19:47]}
{[%emt 00:00:33]} Nd4 {[%clk 00:13:08]} {[%emt 00:01:27]} 11. O-O {[%clk
00:19:45]} {[%emt 00:00:07]} Qd7 {[%clk 00:12:53]} {[%emt 00:00:18]} 12. Qd3
{[%clk 00:19:06]} {[%emt 00:00:46]} Kd8 {[%clk 00:11:27]} {[%emt 00:01:31]} 13.
Nb5 {[%clk 00:18:03]} {[%emt 00:01:08]} a6 {[%clk 00:10:13]} {[%emt 00:01:18]}
14. Nxd4 {[%clk 00:17:59]} {[%emt 00:00:09]} Bxd4+ {[%clk 00:10:16]} {[%emt
00:00:01]} 15. Kh1 {[%clk 00:18:03]} {[%emt 00:00:02]} Kc7 {[%clk 00:09:11]}
{[%emt 00:01:10]} 16. Qc4 {[%clk 00:17:59]} {[%emt 00:00:09]} b5 {[%clk
00:08:25]} {[%emt 00:00:51]} 17. Qd5 {[%clk 00:17:41]} {[%emt 00:00:23]} Qc6
{[%clk 00:06:55]} {[%emt 00:01:35]} 18. Ne6+ {[%clk 00:17:09]} {[%emt
00:00:37]} Kd7 {[%clk 00:06:35]} {[%emt 00:00:24]} 19. Nxd4 {[%clk 00:16:49]}
{[%emt 00:00:25]} Qxd5 {[%clk 00:06:15]} {[%emt 00:00:26]} 20. exd5 {[%clk
00:16:53]} {[%emt 00:00:01]} cxd4 {[%clk 00:06:16]} {[%emt 00:00:04]} 21. b3
{[%clk 00:16:23]} {[%emt 00:00:35]} Rhf8 {[%clk 00:05:48]} {[%emt 00:00:33]} 22.
Bb2 {[%clk 00:16:19]} {[%emt 00:00:09]} Rf5 {[%clk 00:05:00]} {[%emt 00:00:53]}
23. axb5 {[%clk 00:16:18]} {[%emt 00:00:06]} Rxd5 {[%clk 00:04:38]} {[%emt
00:00:27]} 24. bxa6 {[%clk 00:16:21]} {[%emt 00:00:02]} Kc7 {[%clk 00:03:52]}
{[%emt 00:00:50]} 25. Ra4 {[%clk 00:16:16]} {[%emt 00:00:10]} e5 {[%clk
00:03:18]} {[%emt 00:00:39]} 26. fxe5 {[%clk 00:16:00]} {[%emt 00:00:22]} dxe5
{[%clk 00:03:19]} {[%emt 00:00:04]} 27. Rf6 {[%clk 00:15:19]} {[%emt 00:00:45]}
Rd6 {[%clk 00:03:01]} {[%emt 00:00:23]} 28. Rxd6 {[%clk 00:14:58]} {[%emt
00:00:27]} Kxd6 {[%clk 00:03:04]} {[%emt 00:00:02]} 29. c3 {[%clk 00:14:18]}
{[%emt 00:00:45]} dxc3 {[%clk 00:02:54]} {[%emt 00:00:14]} 30. Bxc3 {[%clk
00:14:18]} {[%emt 00:00:06]} Nf7 {[%clk 00:02:57]} {[%emt 00:00:03]} 31. b4
{[%clk 00:14:03]} {[%emt 00:00:20]} e4 {[%clk 00:02:34]} {[%emt 00:00:27]} 32.
Kg1 {[%clk 00:14:02]} {[%emt 00:00:06]} Kc7 {[%clk 00:02:21]} {[%emt 00:00:18]}
33. Bd4 {[%clk 00:13:44]} {[%emt 00:00:24]} Nd6 {[%clk 00:02:14]} {[%emt
00:00:11]} 34. Be5 {[%clk 00:13:32]} {[%emt 00:00:16]} Kc6 {[%clk 00:02:02]}
{[%emt 00:00:18]} 35. Bxd6 {[%clk 00:13:35]} {[%emt 00:00:02]} Kxd6 {[%clk
00:02:05]} {[%emt 00:00:01]} 36. Ra5 {[%clk 00:13:35]} {[%emt 00:00:06]} h5
{[%clk 00:02:00]} {[%emt 00:00:10]} 37. Kf2 {[%clk 00:13:38]} {[%emt 00:00:02]}
Kc6 {[%clk 00:01:56]} {[%emt 00:00:09]} 38. Ke3 {[%clk 00:13:40]} {[%emt
00:00:03]} Kb6 {[%clk 00:01:57]} {[%emt 00:00:02]} 39. a7 {[%clk 00:13:43]}
{[%emt 00:00:03]} Rxa7 {[%clk 00:01:54]} {[%emt 00:00:08]} 40. Rxa7 {[%clk
00:13:46]} {[%emt 00:00:02]} Kxa7 {[%clk 00:01:58]} 41. Kxe4 {[%clk 00:13:49]}
{[%emt 00:00:02]} Kb6 {[%clk 00:02:02]} {[%emt 00:00:01]} 42. Kd4 {[%clk
00:13:45]} {[%emt 00:00:09]} Kb5 {[%clk 00:01:58]} {[%emt 00:00:10]} 43. Kc3
{[%clk 00:13:48]} {[%emt 00:00:02]} g5 {[%clk 00:01:54]} {[%emt 00:00:08]} 44.
h3 {[%clk 00:13:46]} {[%emt 00:00:07]} h4 {[%clk 00:01:56]} {[%emt 00:00:03]}
45. d4 {[%clk 00:13:49]} {[%emt 00:00:02]} Kc6 {[%clk 00:01:56]} {[%emt
00:00:05]} 46. Kc4 {[%clk 00:13:53]} Kd6 {[%clk 00:01:56]} {[%emt 00:00:05]} 47.
b5 {[%clk 00:13:56]} {[%emt 00:00:02]} Ke6 {[%clk 00:01:59]} 48. b6 {[%clk
00:13:59]} {[%emt 00:00:03]} Kf5 {[%clk 00:02:03]} 49. b7 {[%clk 00:14:01]}
{[%emt 00:00:03]} Kf4 {[%clk 00:02:04]} {[%emt 00:00:03]} 50. b8=Q {[%clk
00:14:02]} {[%emt 00:00:04]} Ke3 {[%clk 00:02:05]} {[%emt 00:00:04]} 51. Qe5+
{[%clk 00:14:05]} {[%emt 00:00:03]} Kf2 {[%clk 00:02:06]} {[%emt 00:00:04]} 52.
Qxg5 {[%clk 00:13:54]} {[%emt 00:00:16]} Kg1 {[%clk 00:02:06]} {[%emt
00:00:04]} 53. Qe3+ {[%clk 00:13:56]} {[%emt 00:00:03]} Kxg2 {[%clk 00:02:08]}
{[%emt 00:00:03]} 54. Kd3 {[%clk 00:13:59]} {[%emt 00:00:03]} 1-0



[ePGN "0.1;DGT LiveChess/2.2.6"]